bitfinex-derivatives/quotes_ETHF0:USTF0_20250518
["timestamp","ask_amount","ask_price","bid_price","bid_amount"]
[1747535110407,1.00338276,2483.3,2483.2,31.65784569]
[1747535110703,1.67424063,2483.8,2483.4,2.65989033]
[1747535110898,10.04049213,2484.3,2483.9,2.01231]
[1747535111105,10.84528213,2484.3,2484.2,2.65989033]
[1747535111598,12.22228213,2484.3,2484.2,2.65989033]
[1747535112305,4.18965619,2484.3,2484.2,2.65989033]
[1747535112507,4.18965619,2484.3,2484.2,3.98499033]
[1747535113205,2.18179,2484.3,2484.2,3.98499033]
[1747535114109,3.2078,2484.4,2484.3,0.80479]
[1747535114405,3.2078,2484.4,2484.3,12.43298033]
[1747535114794,0.80466,2484.7,2484.5,0.8047]
[1747535115003,0.80466,2484.7,2484.6,1.9082]
[1747535115198,0.80466,2484.7,2484.6,4.56809033]
[1747535123110,0.80466,2484.7,2484.6,5.37278033]
[1747535126513,0.80466,2484.7,2484.6,4.56809033]
[1747535127010,0.80466,2484.7,2484.6,5.37279033]
[1747535136719,0.8047,2484.6,2484.5,10.773]
[1747535136920,2.1247,2484.6,2484.5,3.058]
[1747535137220,0.80479,2484.3,2484.2,8.51482]
[1747535137411,0.80479,2484.3,2484.2,0.80482]
[1747535137612,0.80479,2484.3,2484.2,11.17471033]
[1747535137811,0.80479,2484.3,2484.2,12.38205629]
[1747535138220,0.80479,2484.3,2484.2,4.67205629]
[1747535138519,0.80479,2484.3,2484.2,12.38205629]
[1747535138725,0.80479,2484.3,2484.2,11.57723629]
[1747535139022,0.80479,2484.3,2484.2,12.38205629]
[1747535139521,0.80479,2484.3,2484.2,11.57723629]
[1747535139732,0.80479,2484.3,2484.2,12.38205629]
[1747535141023,0.80479,2484.3,2484.2,13.66975629]
[1747535142429,0.80476,2484.4,2484.3,0.80479]
[1747535142724,0.80476,2484.4,2484.3,4.75238033]
[1747535143119,0.80476,2484.4,2484.3,7.81038033]
[1747535143619,0.80476,2484.4,2484.3,9.01772629]
[1747535144630,0.80476,2484.4,2484.3,8.21293629]
[1747535144927,2.10196,2484.4,2484.3,6.92523629]
[1747535147926,2.10196,2484.4,2484.3,7.73002629]
[1747535148127,2.10196,2484.4,2484.3,8.24233629]
[1747535151628,2.10196,2484.4,2484.3,4.26534596]
[1747535153334,2.10196,2484.4,2484.3,1.20734596]
[1747535153535,2.10196,2484.4,2484.3,3.86723629]
[1747535155240,2.10196,2484.4,2484.3,4.67202629]
[1747535155429,2.10196,2484.4,2484.3,3.86723629]
[1747535156135,2.10196,2484.4,2484.3,6.92523629]
[1747535157238,2.10196,2484.4,2484.3,3.86723629]
[1747535159746,2.10196,2484.4,2484.3,4.67202629]
[1747535159932,2.10196,2484.4,2484.3,6.04652629]
[1747535160128,3.2078,2484.6,2484.3,6.04652629]
[1747535160129,3.2078,2484.6,2484.5,0.80473]
[1747535160332,4.01251,2484.6,2484.5,3.46462033]
[1747535160534,4.01251,2484.6,2484.5,0.80473]
[1747535160742,5.37861,2484.6,2484.5,2.82493]
[1747535160938,5.37861,2484.6,2484.5,4.03227596]
[1747535161137,5.37861,2484.6,2484.5,7.09027596]
[1747535161637,5.37861,2484.6,2484.5,6.28554596]
[1747535162342,5.37861,2484.6,2484.5,4.26534596]
[1747535163231,5.37861,2484.6,2484.5,1.20734596]
[1747535164043,0.80479,2484.3,2484.2,10.96204294]
[1747535164444,0.80479,2484.3,2484.2,13.62193327]
[1747535166141,0.80479,2484.3,2484.2,14.83393025]
[1747535166344,3.2078,2484.6,2484.2,14.02911025]
[1747535166642,3.2078,2484.6,2484.5,2.65989033]
[1747535166943,4.01253,2484.6,2484.5,2.65989033]
[1747535167243,0.80473,2484.5,2484.4,1.44834]
[1747535167645,0.80473,2484.5,2484.4,4.10823033]
[1747535168037,0.80473,2484.5,2484.4,5.32022731]
[1747535168236,0.80473,2484.5,2484.4,8.37822731]
[1747535169842,0.80473,2484.5,2484.4,8.37824731]
[1747535170452,0.80473,2484.5,2484.4,7.57348731]
[1747535170651,2.05653,2484.5,2484.4,7.57348731]
[1747535171139,2.69083,2484.5,2484.4,6.92988731]
[1747535171342,2.69083,2484.5,2484.4,4.26999698]
[1747535172239,2.69083,2484.5,2484.4,1.21199698]
[1747535176146,2.69083,2484.5,2484.4,3.87188731]
[1747535176646,2.69083,2484.5,2484.4,4.50248731]
[1747535177253,2.69083,2484.5,2484.4,7.56048731]
[1747535177743,2.05653,2484.5,2484.4,8.36524731]
[1747535186155,2.05653,2484.5,2484.4,10.29924731]
[1747535190655,2.05653,2484.5,2484.4,9.49448731]
[1747535201966,2.05653,2484.5,2484.4,10.29924731]
[1747535202165,2.05653,2484.5,2484.4,9.49448731]
[1747535206069,2.05653,2484.5,2484.4,8.24008731]
[1747535209177,2.05653,2484.5,2484.4,9.51098731]
[1747535211375,2.05653,2484.5,2484.4,10.31574731]
[1747535212378,2.05653,2484.5,2484.4,9.51098731]
[1747535213378,2.05653,2484.5,2484.4,10.31574731]
[1747535213978,2.05653,2484.5,2484.4,9.51098731]
[1747535214578,2.05653,2484.5,2484.4,9.60316734]
[1747535215479,2.05653,2484.5,2484.4,9.51098731]
[1747535217379,2.05653,2484.5,2484.4,10.31574731]
[1747535219081,2.05653,2484.5,2484.4,9.51098731]
[1747535221278,2.05653,2484.5,2484.4,6.92988731]
[1747535221480,2.05653,2484.5,2484.4,4.26999698]
[1747535222184,2.05653,2484.5,2484.4,1.21199698]
[1747535224780,2.05653,2484.5,2484.4,2.01675698]
[1747535225275,2.05653,2484.5,2484.4,5.07475698]
[1747535225476,2.05653,2484.5,2484.4,5.72795698]
[1747535227080,2.05653,2484.5,2484.4,7.09735698]
[1747535227383,2.05653,2484.5,2484.4,9.75724731]
[1747535228385,2.05653,2484.5,2484.4,8.95248731]
[1747535236389,2.05653,2484.5,2484.4,9.75724731]
[1747535241889,2.05653,2484.5,2484.4,8.95248731]
[1747535243590,2.05653,2484.5,2484.4,6.92988731]
[1747535244181,2.05653,2484.5,2484.4,3.87188731]
[1747535245192,2.05653,2484.5,2484.4,6.92988731]
[1747535245388,2.05653,2484.5,2484.4,4.26999698]
[1747535246093,2.05653,2484.5,2484.4,1.21199698]
[1747535252196,2.05653,2484.5,2484.1,1.60016392]
[1747535252197,0.80482,2484.2,2484.1,1.60016392]
[1747535252397,11.70662,2484.2,2484.1,1.60016392]
[1747535253195,13.08062,2484.2,2484.1,1.60016392]
[1747535255399,0.80495,2483.8,2483.7,0.80499]
[1747535255902,0.80494,2483.9,2483.8,0.80495]
[1747535256098,0.80494,2483.9,2483.8,1.9644]
[1747535256298,0.80494,2483.9,2483.8,4.62429033]
[1747535257100,0.80494,2483.9,2483.8,7.68229033]
[1747535258205,0.80494,2483.9,2483.8,4.62429033]
[1747535258702,0.80494,2483.9,2483.8,5.42924033]
[1747535259003,2.17891,2484.0,2483.9,0.80492]
[1747535259305,2.17891,2484.0,2483.9,3.96949033]
[1747535260203,0.80491,2484.0,2483.9,7.02749033]
[1747535261500,2.10231,2484.0,2483.9,7.02749033]
[1747535261894,2.10231,2484.0,2483.9,5.71789033]
[1747535264508,2.10231,2484.0,2483.9,6.98339033]
[1747535266112,2.10231,2484.0,2483.9,3.92539033]
[1747535267111,2.10231,2484.0,2483.9,6.98339033]
[1747535268121,2.10231,2484.0,2483.9,3.058]
[1747535269217,0.80492,2483.9,2483.8,1.2944]
[1747535269418,0.80492,2483.9,2483.8,2.09935]
[1747535269722,0.80495,2483.8,2483.7,0.6923]
[1747535269911,2.13145,2483.8,2483.7,0.6923]
[1747535270113,2.13145,2483.8,2483.7,4.64659033]
[1747535271126,2.13145,2483.8,2483.7,5.84148247]
[1747535272024,3.2078,2484.2,2483.7,5.84148247]
[1747535272224,3.2078,2484.2,2484.1,2.65989033]
[1747535272419,1.00874054,2484.5,2484.4,0.80476]
[1747535272624,1.00874054,2484.5,2484.4,6.67245033]
[1747535273229,1.00874054,2484.5,2484.4,9.73045033]
[1747535273420,1.81347054,2484.5,2484.4,9.73045033]
[1747535273621,1.81347054,2484.5,2484.4,8.92569033]
[1747535273920,1.81347054,2484.5,2484.4,10.12058247]
[1747535274220,1.81347054,2484.5,2484.4,11.38158247]
[1747535274620,1.81347054,2484.5,2484.4,8.17378247]
[1747535275722,1.00874054,2484.5,2484.4,12.18634247]
[1747535276427,0.8047,2484.6,2484.4,12.18634247]
[1747535276724,0.8047,2484.6,2484.5,4.00949033]
[1747535277724,0.8047,2484.6,2484.5,2.54449214]
[1747535278227,0.8047,2484.6,2484.5,5.60249214]
[1747535278429,0.8047,2484.6,2484.5,6.25229214]
[1747535278731,0.8047,2484.6,2484.5,5.0574]
[1747535279230,0.8047,2484.6,2484.5,3.058]
[1747535279527,7.1289,2484.6,2484.5,3.058]
[1747535280131,0.80473,2484.5,2484.4,3.2078]
[1747535280330,9.75883,2484.5,2484.4,3.2078]
[1747535281628,0.80486,2484.1,2484.0,2.6855]
[1747535281925,0.80486,2484.1,2484.0,5.8933]
[1747535282127,0.80486,2484.1,2484.0,11.61119033]
[1747535283330,0.80486,2484.1,2484.0,12.80492349]
[1747535283729,0.80486,2484.1,2484.0,7.45953316]
[1747535284129,0.80486,2484.1,2484.0,4.40153316]
[1747535284723,0.80486,2484.1,2484.0,3.2078]
[1747535284925,2.17366,2484.1,2484.0,3.2078]
[1747535291738,0.80489,2484.0,2483.9,1.3796]
[1747535291930,0.80489,2484.0,2483.9,4.5874]
[1747535292131,0.80489,2484.0,2483.9,10.30529033]
[1747535293841,2.17368,2484.1,2483.9,10.30529033]
[1747535294040,0.80488,2484.1,2484.0,4.02689033]
[1747535294336,0.80488,2484.1,2484.0,7.71679033]
[1747535294640,0.80488,2484.1,2484.0,5.0569]
[1747535294934,0.80488,2484.1,2484.0,7.71679033]
[1747535296241,0.80488,2484.1,2484.0,8.52168033]
[1747535298340,5.21951,2484.7,2484.0,7.71679033]
[1747535298541,2.71789,2484.6,2484.5,2.65989033]
[1747535299034,0.80476,2484.4,2484.3,2.76488]
[1747535299643,0.80476,2484.4,2484.3,5.42477033]
[1747535300142,0.80476,2484.4,2484.3,8.48277033]
[1747535300838,0.80476,2484.4,2484.3,3.058]
[1747535301234,0.80479,2484.3,2484.2,3.2078]
[1747535301441,2.77759,2484.3,2484.2,3.2078]
[1747535301740,2.77759,2484.3,2484.2,5.86769033]
[1747535301933,0.80479,2484.3,2484.2,6.67251033]
[1747535302136,0.80479,2484.3,2484.2,7.92321033]
[1747535302829,0.80479,2484.3,2484.2,9.11816209]
[1747535303637,0.80479,2484.3,2484.2,5.91036209]
[1747535303944,0.80479,2484.3,2484.2,9.11816209]
[1747535305243,0.80479,2484.3,2484.2,8.31334209]
[1747535313150,0.80479,2484.3,2484.2,9.11816209]
[1747535316350,1.293,2484.5,2484.2,8.31334209]
[1747535316545,0.8047,2484.6,2484.4,2.65989033]
[1747535316738,0.80472,2484.6,2484.5,6.67241033]
[1747535317043,0.80472,2484.6,2484.5,5.86769033]
[1747535317248,0.80472,2484.6,2484.5,7.06264209]
[1747535318151,0.80472,2484.6,2484.5,10.12064209]
[1747535318451,2.79968,2484.7,2484.6,0.8047]
[1747535319047,2.79968,2484.7,2484.6,2.68805176]
[1747535320853,2.79968,2484.7,2484.6,1.88335176]
[1747535321053,2.79968,2484.7,2484.6,2.68805176]
[1747535321752,2.12208,2484.7,2484.6,2.68805176]
[1747535328858,2.12206,2484.7,2484.6,5.34794209]
[1747535336269,2.12206,2484.7,2484.6,4.54324209]
[1747535336764,2.12206,2484.7,2484.6,3.85484209]
[1747535338866,2.12206,2484.7,2484.6,4.65953209]
[1747535339560,7.686,2485.5,2484.7,0.80466]
[1747535339765,1.3584,2485.1,2485.0,4.01237]
[1747535340267,1.3584,2485.1,2485.0,6.67226033]
[1747535340466,1.3584,2485.1,2485.0,7.86721209]
[1747535341067,1.3584,2485.1,2485.0,9.79001209]
[1747535341271,1.3584,2485.1,2485.0,12.84801209]
[1747535341666,2.11207,2485.3,2485.0,12.84801209]
[1747535341873,3.42157,2485.3,2485.2,0.8045]
[1747535342070,1.9683,2485.3,2485.2,3.46439033]
[1747535342370,1.9683,2485.3,2485.2,4.81959033]
[1747535343371,1.9683,2485.3,2485.2,6.01454209]
[1747535344070,2.77277,2485.3,2485.2,6.01454209]
[1747535348367,1.9683,2485.3,2485.2,6.01454209]
[1747535349173,2.77277,2485.3,2485.2,6.01454209]
[1747535349974,1.9683,2485.3,2485.2,6.01454209]
[1747535350875,2.77277,2485.3,2485.2,6.01454209]
[1747535351070,2.77277,2485.3,2485.2,5.21004209]
[1747535351272,2.77277,2485.3,2485.2,4.01509033]
[1747535352376,2.77277,2485.3,2485.2,4.81959033]
[1747535354177,2.11397,2485.3,2485.2,4.81959033]
[1747535355376,2.11397,2485.3,2485.2,8.02739033]
[1747535356877,2.11397,2485.3,2485.2,7.22289033]
[1747535357476,2.11397,2485.3,2485.2,8.02739033]
[1747535360183,2.11397,2485.3,2485.2,7.22289033]
[1747535360683,2.11397,2485.3,2485.2,5.86769033]
[1747535360983,2.11397,2485.3,2485.2,6.67219033]
[1747535361482,2.11397,2485.3,2485.2,5.86769033]
[1747535361878,1.3095,2485.3,2485.2,6.67219033]
[1747535362075,1.46891,2485.5,2485.4,0.80444]
[1747535362278,2.84721,2485.5,2485.4,3.46433033]
[1747535363184,2.84721,2485.5,2485.4,2.65989033]
[1747535363480,2.84721,2485.5,2485.2,3.2078]
[1747535363481,0.80447,2485.3,2485.2,3.2078]
[1747535363886,0.80447,2485.3,2485.2,5.86769033]
[1747535364078,1.44497,2485.3,2485.2,5.86769033]
[1747535364685,1.44497,2485.3,2485.2,7.0595683]
[1747535370403,1.44497,2485.3,2485.2,3.8517683]
[1747535373196,1.44497,2485.3,2485.2,1.19187797]
[1747535373509,0.8045,2485.2,2485.1,1.20079005]
[1747535373802,2.1395,2485.2,2485.1,1.20079005]
[1747535374203,5.1975,2485.2,2485.1,1.20079005]
[1747535376005,0.80463,2484.8,2484.7,3.2078]
[1747535376497,0.80463,2484.8,2484.7,5.86769033]
[1747535377202,0.80463,2484.8,2484.7,7.06051862]
[1747535382405,0.80463,2484.8,2484.7,4.40062829]
[1747535383609,0.80463,2484.8,2484.7,3.2078]
[1747535398710,2.12503,2484.8,2484.7,3.2078]
[1747535400417,0.80463,2484.8,2484.7,5.86769033]
[1747535400611,0.80457,2485.0,2484.7,13.54769033]
[1747535400915,1.81324054,2485.2,2485.1,5.86769033]
[1747535401311,0.8045,2485.2,2485.1,5.86769033]
[1747535402215,0.8045,2485.2,2485.1,6.53899033]
[1747535403022,0.8045,2485.2,2485.1,7.79149033]
[1747535403721,2.8317,2485.2,2485.1,4.58369033]
[1747535404320,0.8045,2485.2,2485.1,4.58369033]
[1747535404929,1.81322054,2485.3,2485.2,0.8045]
[1747535405115,1.81322054,2485.3,2485.2,8.61589033]
[1747535405516,4.5733,2485.7,2485.2,8.61589033]
[1747535405819,0.8044,2485.5,2485.4,2.65989033]
[1747535406222,0.8044,2485.5,2485.4,3.28499033]
[1747535406921,0.80447,2485.3,2485.2,5.09162262]
[1747535407620,1.47957,2485.3,2485.2,3.899]
[1747535407826,1.47957,2485.3,2485.2,0.6912]
[1747535409118,0.80447,2485.3,2485.2,4.69709033]
[1747535410315,0.80447,2485.3,2485.2,5.50159033]
[1747535411024,14.24683,2485.7,2485.2,5.50159033]
[1747535411225,0.8044,2485.5,2485.4,2.65989033]
[1747535411521,2.01072,2485.9,2485.6,2.65989033]
[1747535411725,0.80434,2485.7,2485.6,2.65989033]
[1747535411920,0.80434,2485.7,2485.6,4.62899033]
[1747535412927,0.80437,2485.6,2485.5,0.6414]
[1747535413123,0.8044,2485.5,2485.4,0.6751]
[1747535413331,2.8169,2485.5,2485.4,0.6751]
[1747535415030,0.8044,2485.5,2485.4,0.6751]
[1747535415230,0.8044,2485.5,2485.4,6.39299033]
[1747535415732,0.8044,2485.5,2485.4,9.60079033]
[1747535415929,0.8044,2485.5,2485.4,10.28069033]
[1747535417129,0.8044,2485.5,2485.4,11.59639033]
[1747535419228,0.8044,2485.5,2485.4,3.058]
[1747535419924,7.7088,2485.5,2485.4,3.058]
[1747535420235,0.80453,2485.1,2485.0,3.2078]
[1747535420536,0.80457,2485.0,2484.9,1.297]
[1747535420833,1.46087,2485.0,2484.9,0.661]
[1747535421036,1.46087,2485.0,2484.8,2.53069005]
[1747535421037,0.8046,2484.9,2484.8,1.20079005]
[1747535421229,2.7431,2484.9,2484.8,1.20079005]
[1747535421625,0.80466,2484.7,2484.6,5.8718]
[1747535422126,0.80466,2484.7,2484.6,8.53169033]
[1747535422327,0.80466,2484.7,2484.6,6.52869033]
[1747535423534,0.8047,2484.6,2484.5,3.058]
[1747535423730,2.1064,2484.6,2484.5,5.71789033]
[1747535424129,2.1064,2484.6,2484.5,2.65989033]
[1747535431935,0.80476,2484.4,2484.3,3.8778]
[1747535432340,0.80476,2484.4,2484.3,9.59569033]
[1747535432837,0.80476,2484.4,2484.3,10.92099033]
[1747535433640,0.80476,2484.4,2484.3,11.01317036]
[1747535434640,0.80476,2484.4,2484.3,10.92099033]
[1747535436642,0.80476,2484.4,2484.3,7.71319033]
[1747535441242,1.46906,2484.4,2484.3,7.71319033]
[1747535441744,1.46906,2484.4,2484.3,7.80537036]
[1747535442845,1.46906,2484.4,2484.3,5.0533]
[1747535443039,1.46906,2484.4,2484.3,3.058]
[1747535443539,2.72566,2484.4,2484.3,3.058]
[1747535444346,0.80479,2484.3,2484.2,3.2078]
[1747535444644,2.06139,2484.3,2484.2,5.86769033]
[1747535445336,2.06139,2484.3,2484.2,7.12289033]
[1747535445741,2.06139,2484.3,2484.2,3.2078]
[1747535446350,0.80489,2484.0,2483.9,7.521]
[1747535446749,0.80489,2484.0,2483.9,10.18089033]
[1747535447051,0.80489,2484.0,2483.9,6.2658]
[1747535447246,2.83439,2484.0,2483.9,3.2078]
[1747535448051,0.80495,2483.8,2483.7,2.45599005]
[1747535448454,0.80495,2483.8,2483.7,1.2552]
[1747535451555,0.80499,2483.7,2483.6,4.3682]
[1747535451855,2.05409,2483.7,2483.6,4.3682]
[1747535452050,2.05409,2483.7,2483.6,7.02809033]
[1747535452257,2.05409,2483.7,2483.6,3.97009033]
[1747535454059,0.80502,2483.6,2483.5,3.058]
[1747535454254,2.77392,2483.6,2483.5,3.058]
[1747535454451,2.77392,2483.6,2483.5,5.71789033]
[1747535455568,2.77392,2483.6,2483.5,7.06419033]
[1747535458272,2.77392,2483.6,2483.5,3.058]
[1747535460375,0.80502,2483.6,2483.5,5.71789033]
[1747535460875,0.80502,2483.6,2483.5,7.08269033]
[1747535461272,0.80502,2483.6,2483.5,3.058]
[1747535463774,1.43632,2483.6,2483.5,3.058]
[1747535463969,2.12512,2483.6,2483.5,3.058]
[1747535464169,0.80508,2483.4,2483.3,3.2078]
[1747535464675,0.80508,2483.4,2483.3,5.86769033]
[1747535465276,0.80508,2483.4,2483.3,8.92569033]
[1747535465775,0.80508,2483.4,2483.3,6.2658]
[1747535466173,0.80508,2483.4,2483.3,3.2078]
[1747535466373,2.14258,2483.4,2483.3,3.2078]
[1747535468476,2.04258,2483.4,2483.3,3.2078]
[1747535469875,0.80518,2483.1,2483.0,5.8648]
[1747535470075,0.80518,2483.1,2483.0,6.52049033]
[1747535470276,0.80525,2482.9,2482.8,1.356]
[1747535470674,0.80525,2482.9,2482.8,4.01589033]
[1747535471282,0.80525,2482.9,2482.8,7.07389033]
[1747535473475,0.80525,2482.9,2482.8,7.87917033]
[1747535473676,0.80519,2483.1,2483.0,0.80519]
[1747535473873,0.80519,2483.1,2483.0,4.01299]
[1747535474074,0.80512,2483.3,2483.0,5.86769033]
[1747535474282,0.80502,2483.6,2483.5,0.89723003]
[1747535474477,5.57964109,2484.3,2483.5,2.75207036]
[1747535474681,5.79905846,2484.1,2484.0,2.65989033]
[1747535475280,4.99419846,2484.1,2484.0,3.46478033]
[1747535475480,4.99419846,2484.1,2484.0,0.80489]
[1747535475679,4.99419846,2484.1,2484.0,2.65989033]
[1747535475680,4.79031792,2484.1,2484.0,2.65989033]
[1747535476077,4.79031792,2484.1,2484.0,7.02709033]
[1747535477990,0.80486,2484.1,2484.0,7.02709033]
[1747535478286,0.80486,2484.1,2484.0,3.96909033]
[1747535479188,0.80486,2484.1,2484.0,7.02709033]
[1747535479994,0.80486,2484.1,2484.0,7.68979033]
[1747535481185,3.2078,2484.5,2484.0,20.43389045]
[1747535481391,4.01254,2484.5,2484.4,2.65989033]
[1747535481686,0.8047,2484.6,2484.4,5.86769033]
[1747535481889,0.8047,2484.6,2484.5,2.65989033]
[1747535482187,0.8047,2484.6,2484.5,4.64169033]
[1747535483588,1.3057,2484.8,2484.5,4.64169033]
[1747535483791,1.00428939,2485.1,2484.7,5.86769033]
[1747535483991,1.00428939,2485.1,2485.0,6.67226033]
[1747535484186,1.80881939,2485.1,2485.0,6.67226033]
[1747535484690,0.80453,2485.1,2485.0,6.67226033]
[1747535484879,1.00428939,2485.2,2485.0,7.97936033]
[1747535485083,1.80878939,2485.2,2485.1,2.65989033]
[1747535486493,1.80878939,2485.2,2485.1,3.46442033]
[1747535486494,1.00428939,2485.2,2485.1,3.46442033]
[1747535486699,1.00428939,2485.2,2485.1,7.73268104]
[1747535490696,0.80447,2485.3,2485.2,0.8045]
[1747535490996,0.80447,2485.3,2485.2,4.84159033]
[1747535494701,0.89665003,2485.3,2485.2,4.03709033]
[1747535495499,0.89665003,2485.3,2485.0,11.5486]
[1747535495500,0.80453,2485.1,2485.0,3.8726]
[1747535495701,0.80453,2485.1,2485.0,12.9017]
[1747535495903,0.80453,2485.1,2485.0,15.56159033]
[1747535496605,0.80453,2485.1,2485.0,16.36616033]
[1747535496904,0.80453,2485.1,2485.0,15.56159033]
[1747535497311,2.83412,2485.2,2485.1,0.80453]
[1747535497602,2.83412,2485.2,2485.1,2.65989033]
[1747535497803,0.80453,2485.1,2485.0,13.70624]
[1747535498398,0.80453,2485.1,2485.0,16.36613033]
[1747535498800,2.12773,2485.1,2485.0,16.36613033]
[1747535499301,2.12773,2485.1,2485.0,13.70624]
[1747535499603,2.12773,2485.1,2485.0,16.36613033]
[1747535501909,2.01156,2484.9,2484.7,3.2078]
[1747535502117,0.80463,2484.8,2484.7,3.2078]
[1747535502412,2.74583,2484.8,2484.7,3.2078]
[1747535502815,0.8047,2484.6,2484.5,1.18276109]
[1747535503513,0.8047,2484.6,2484.4,10.8848]
[1747535503514,0.80473,2484.5,2484.4,10.8848]
[1747535503911,0.80473,2484.5,2484.4,13.54469033]
[1747535504616,0.80473,2484.5,2484.4,3.2078]
[1747535504813,11.079,2484.6,2484.0,1.20079005]
[1747535505018,0.80486,2484.1,2484.0,3.86068038]
[1747535505210,0.80486,2484.1,2484.0,5.23028038]
[1747535505714,0.80486,2484.1,2484.0,3.86068038]
[1747535506418,2.16586,2484.1,2484.0,3.86068038]
[1747535506716,2.16586,2484.1,2484.0,1.20079005]
[1747535506917,0.80489,2484.0,2483.9,3.2078]
[1747535507118,2.84519,2484.0,2483.9,3.2078]
[1747535512323,0.80487,2484.1,2483.9,6.67261033]
[1747535512618,0.80487,2484.1,2484.0,3.92359033]
[1747535513119,2.08537,2484.1,2484.0,3.92359033]
[1747535514422,0.80487,2484.1,2484.0,4.72848033]
[1747535514721,0.80487,2484.1,2484.0,3.92359033]
[1747535516522,2.10907,2484.1,2484.0,3.92359033]
[1747535517721,2.10907,2484.1,2484.0,2.65989033]
[1747535518521,0.80492,2483.9,2483.8,3.2078]
[1747535518724,0.80492,2483.9,2483.8,5.86769033]
[1747535519220,2.05882,2483.9,2483.8,5.86769033]
[1747535520515,2.05882,2483.9,2483.8,3.2078]
[1747535520922,2.05882,2483.9,2483.4,5.1384]
[1747535520923,0.80505,2483.5,2483.4,5.1384]
[1747535521116,0.80505,2483.5,2483.4,3.8476]
[1747535521322,0.80505,2483.5,2483.4,6.50749033]
[1747535521825,0.80505,2483.5,2483.4,5.86769033]
[1747535522021,0.80512,2483.3,2483.2,1.20079005]
[1747535522723,2.80052,2483.3,2483.2,1.20079005]
[1747535523025,0.80521,2483.0,2482.9,0.6333]
[1747535523225,0.80521,2483.0,2482.9,3.29319033]
[1747535523425,0.80521,2483.0,2482.9,4.64869033]
[1747535524326,0.80521,2483.0,2482.9,7.70669033]
[1747535526322,1.9954,2483.3,2483.1,0.80517]
[1747535526527,2.80054,2483.3,2483.2,1.3435]
[1747535528027,2.80054,2483.3,2483.2,1.43568003]
[1747535528928,2.80054,2483.3,2483.2,0.09218003]
[1747535529826,0.8051,2483.4,2483.3,0.80512]
[1747535530027,7.696,2484.0,2483.3,6.53419033]
[1747535530327,0.80491,2484.0,2483.9,2.65989033]
[1747535530728,0.80491,2484.0,2483.9,1.3549]
[1747535531324,0.80491,2484.0,2483.9,4.4129]
[1747535532026,0.80491,2484.0,2483.9,3.058]
[1747535532234,0.80492,2483.9,2483.8,3.8743]
[1747535532428,2.10472,2483.9,2483.8,0.6665]
[1747535532628,1.2998,2483.9,2483.8,4.13134033]
[1747535533432,0.6243,2484.3,2484.1,0.80483]
[1747535533638,0.80483,2484.2,2484.1,2.65989033]
[1747535533935,0.80483,2484.2,2484.1,1.3777]
[1747535535034,1.3658,2484.3,2483.9,0.6421]
[1747535535035,0.80489,2484.0,2483.9,0.6421]
[1747535535232,0.80499,2483.7,2483.6,1.20079005]
[1747535537234,2.09599,2483.7,2483.6,1.20079005]
[1747535537534,0.80511,2483.4,2483.2,4.01294]
[1747535537834,0.80512,2483.3,2483.2,4.01294]
[1747535538233,0.80512,2483.3,2483.2,5.86769033]
[1747535538434,0.80512,2483.3,2483.1,12.8183]
[1747535538435,0.80515,2483.2,2483.1,10.753]
[1747535538635,2.09615,2483.2,2483.1,3.058]
[1747535538838,2.09615,2483.2,2483.1,5.71789033]
[1747535539137,2.09615,2483.2,2483.1,2.65989033]
[1747535541437,1.291,2483.2,2483.1,3.46507033]
[1747535542542,0.6533,2483.4,2483.1,2.65989033]
[1747535542727,1.0,3323.8,2483.3,2.65989033]
[1747535542728,3.2078,2483.8,2483.3,2.65989033]
[1747535542930,3.2078,2484.1,2483.7,5.86769033]
[1747535543133,4.01266,2484.1,2484.0,3.46478033]
[1747535543740,4.01266,2484.1,2484.0,2.65989033]
[1747535544242,0.80492,2483.9,2483.8,1.3842]
[1747535544636,0.80492,2483.9,2483.8,4.04409033]
[1747535547643,0.80492,2483.9,2483.8,2.65989033]
[1747535547840,2.12642,2484.0,2483.8,2.65989033]
[1747535548036,2.12642,2484.0,2483.9,2.65989033]
[1747535549346,1.3215,2484.0,2483.7,3.2078]
[1747535549542,0.80495,2483.8,2483.7,3.2078]
[1747535550135,1.3469,2483.8,2483.7,5.86769033]
[1747535550438,0.80494,2483.9,2483.7,6.67268033]
[1747535550638,0.80494,2483.9,2483.8,2.65989033]
[1747535551136,0.80495,2483.8,2483.7,3.2078]
[1747535551341,2.12705,2483.8,2483.7,3.2078]
[1747535552149,0.80505,2483.5,2483.4,4.40859005]
[1747535552448,0.80505,2483.5,2483.4,3.2078]
[1747535553441,2.12715,2483.5,2483.4,5.86769033]
[1747535553840,2.12715,2483.5,2483.4,3.2078]
[1747535554247,2.12715,2483.5,2483.4,6.2658]
[1747535555447,2.12715,2483.5,2483.4,3.29998003]
[1747535558250,2.12715,2483.5,2483.4,6.35798003]
[1747535559344,0.80505,2483.5,2483.4,5.95987036]
[1747535559549,0.80505,2483.5,2483.4,7.42084036]
[1747535559755,0.80505,2483.5,2483.4,7.30717036]
[1747535560143,0.80505,2483.5,2483.4,11.62827036]
[1747535560343,0.80505,2483.5,2483.4,6.35798003]
[1747535561145,2.18355,2483.5,2483.4,6.35798003]
[1747535561451,2.18355,2483.5,2483.4,3.15018003]
[1747535563250,2.18355,2483.5,2483.4,0.09218003]
[1747535564255,2.18355,2483.5,2483.4,3.15018003]
[1747535567154,2.18355,2483.5,2483.4,0.09218003]
[1747535568050,2.18355,2483.5,2483.4,3.15018003]
[1747535569255,2.18355,2483.5,2483.4,0.09218003]
[1747535573056,2.18355,2483.5,2483.4,3.15018003]
[1747535574062,0.80505,2483.5,2483.4,9.01787036]
[1747535574252,0.80505,2483.5,2483.4,9.64477036]
[1747535575155,1.3658,2483.8,2483.5,0.80503]
[1747535575365,2.17075,2483.8,2483.7,2.65989033]
[1747535576862,0.80499,2483.7,2483.6,3.058]
[1747535577053,2.11979,2483.7,2483.6,3.058]
[1747535577254,2.11979,2483.7,2483.6,5.71789033]
[1747535578256,2.11979,2483.7,2483.6,2.65989033]